bitfinex/quotes_ETHUSD_20250404
["timestamp","ask_amount","ask_price","bid_price","bid_amount"]
[1743727313736,13.0222594,1818.2,1818.1,0.38846019]
[1743727317272,19.0322594,1818.2,1818.1,0.38846019]
[1743727317471,21.64019813,1818.2,1818.1,0.38846019]
[1743727319491,21.64019813,1818.2,1818.1,1.9e-07]
[1743727319657,21.64019813,1818.2,1818.1,0.26551555]
[1743727319858,5.50186,1817.6,1817.3,5.85212]
[1743727320064,14.5254794,1817.6,1817.4,0.24456419]
[1743727320388,14.5254794,1817.6,1817.3,5.85212]
[1743727320893,5.50246,1817.4,1817.1,5.95273]
[1743727321093,3.7126194,1817.4,1817.2,0.24509332]
[1743727321391,5.50297,1817.2,1817.1,0.1]
[1743727321750,21.94076444,1817.4,1817.1,0.34535793]
[1743727321945,5.50269,1817.3,1817.1,0.1]
[1743727322298,5.50269,1817.3,1817.2,0.24509332]
[1743727325248,7.68099804,1817.3,1817.2,0.24509332]
[1743727328412,2.17830804,1817.3,1817.2,0.24509332]
[1743727328572,16.43823444,1817.4,1817.2,0.24509332]
[1743727328771,21.94077444,1817.4,1817.2,0.24509332]
[1743727329005,5.50266,1817.3,1817.2,0.24509332]
[1743727329818,16.43823444,1817.4,1817.2,0.24509332]
[1743727330209,6.01,1817.4,1817.2,0.59459332]
[1743727330373,6.01,1817.4,1817.3,5.50266]
[1743727330884,6.01,1817.4,1817.3,6.09927499]
[1743727333140,5.312,1817.6,1817.5,5.50206]
[1743727333317,3.0,1817.7,1817.5,5.50206]
[1743727333635,15.2232194,1818.0,1817.7,5.50136]
[1743727333966,5.312,1817.9,1817.8,5.50111]
[1743727334944,11.322,1818.1,1817.9,5.50084]
[1743727335250,11.322,1818.1,1817.9,5.85034]
[1743727335412,11.322,1818.1,1818.0,0.24515783]
[1743727336028,11.322,1818.1,1818.0,5.74570783]
[1743727336234,8.4997,1818.3,1818.0,5.74570783]
[1743727336409,8.4997,1818.3,1818.1,5.50024]
[1743727336410,3.0,1818.2,1818.1,5.50024]
[1743727336609,3.0,1818.2,1818.1,0.24359236]
[1743727339541,3.0,1818.2,1817.8,5.50106]
[1743727339542,13.0417594,1818.2,1817.8,5.50106]
[1743727339746,5.50025,1818.1,1817.8,5.50106]
[1743727340948,11.00073,1818.1,1817.7,5.85093]
[1743727341253,7.35450494,1818.1,1817.7,11.35223]
[1743727342261,12.85493494,1818.1,1817.7,11.35223]
[1743727342427,7.35450494,1818.1,1817.7,11.35223]
[1743727342623,1.85425494,1818.1,1817.7,0.3495]
[1743727342828,1.85425494,1818.1,1817.9,5.50072]
[1743727343129,1.85425494,1818.1,1817.8,11.00219]
[1743727343554,1.85425494,1818.1,1817.9,0.24412109]
[1743727343754,12.85499494,1818.1,1817.9,0.24412109]
[1743727343918,1.28549949,1818.0,1817.9,0.24412109]
[1743727344244,1.28549949,1818.0,1817.7,5.50129]
[1743727344448,1.28549949,1818.0,1817.9,0.24412109]
[1743727344656,1.28549949,1818.0,1817.8,0.24438549]
[1743727344851,7.35452494,1818.1,1817.9,0.24412109]
[1743727345255,3.0,1817.9,1817.6,0.3495]
[1743727345460,3.0,1817.9,1817.4,11.3541]
[1743727345461,3.7126194,1817.7,1817.4,11.3541]
[1743727345755,10.81116,1817.8,1817.5,5.50203]
[1743727347167,5.31,1817.8,1817.5,5.50197]
[1743727347661,16.31248,1817.8,1817.5,5.50197]
[1743727347958,3.7126194,1817.7,1817.5,5.50197]
[1743727349477,3.7126194,1817.7,1817.4,5.85183]
[1743727349778,3.7126194,1817.7,1817.4,11.35404]
[1743727350077,3.7126194,1817.7,1817.5,5.50195]
[1743727350445,10.8112,1817.8,1817.6,5.50176]
[1743727350446,5.31,1817.8,1817.6,5.50176]
[1743727350642,13.0160294,1817.9,1817.6,11.00341]
[1743727350842,5.31,1817.8,1817.6,5.50165]
[1743727351799,5.31,1817.8,1817.6,12.103658]
[1743727352084,5.31,1817.8,1817.6,6.601998]
[1743727352269,5.31,1817.8,1817.6,5.50163]
[1743727352988,3.7126194,1817.7,1817.5,5.50198]
[1743727353681,3.7126194,1817.7,1817.2,5.85223]
[1743727353880,9.2147094,1817.5,1817.2,0.3495]
[1743727354048,0.92147094,1817.4,1817.2,5.85245]
[1743727354249,5.31,1817.4,1817.3,5.50262]
[1743727354654,5.31,1817.4,1817.2,5.85237]
[1743727354857,5.31,1817.4,1817.2,5.85233]
[1743727355684,5.31,1817.4,1817.2,5.50283]
[1743727356284,5.31,1817.4,1817.1,5.6032]
[1743727356504,10.81248,1817.4,1817.1,5.6032]
[1743727357310,13.63659994,1817.4,1817.1,5.6032]
[1743727358298,13.63659994,1817.4,1817.1,0.1]
[1743727358299,9.2153194,1817.3,1817.1,0.1]
[1743727358673,9.2153194,1817.3,1817.2,0.23830035]
[1743727360810,3.7126194,1817.3,1817.2,0.23830035]
[1743727361510,9.2152794,1817.3,1817.2,0.23830035]
[1743727361813,11.50046033,1817.3,1817.2,0.23830035]
[1743727361987,12.32186033,1817.3,1817.2,0.23830035]
[1743727362387,5.50297,1817.2,1817.1,0.1]
[1743727363519,12.32186033,1817.3,1817.1,0.1]
[1743727364211,5.50297,1817.2,1817.1,0.1]
[1743727364513,7.28545303,1817.2,1817.1,0.1]
[1743727365268,11.10685303,1817.2,1817.1,0.1]
[1743727367124,11.52473807,1817.2,1817.1,0.1]
[1743727370542,17.53473807,1817.2,1817.1,0.1]
[1743727370916,18.26764899,1817.2,1817.1,0.1]
[1743727371306,18.5417296,1817.2,1817.1,0.1]
[1743727371705,5.50497,1816.6,1816.3,5.85514]
[1743727372014,14.5275894,1816.6,1816.4,0.24449362]
[1743727372220,14.5275894,1816.6,1816.3,5.85519]
[1743727372457,14.5275894,1816.6,1816.5,0.2442288]
[1743727372956,5.5058,1816.3,1816.1,0.1]
[1743727373114,6.606926,1816.3,1816.2,0.22628405]
[1743727373309,6.606926,1816.3,1816.1,0.1]
[1743727373505,1.101126,1816.3,1816.2,0.22628405]
[1743727373731,14.7236894,1816.4,1816.1,0.1]
[1743727373732,14.7236994,1816.4,1816.1,0.1]
[1743727373930,5.5057,1816.3,1816.2,0.22628405]
[1743727374133,5.5057,1816.3,1816.1,0.1]
[1743727374346,5.5057,1816.3,1816.2,0.22628405]
[1743727374550,5.5057,1816.3,1816.1,0.1]
[1743727374719,9.2180794,1816.4,1816.1,0.1]
[1743727374920,9.2180794,1816.4,1816.2,0.22628405]
[1743727375225,5.50582,1816.3,1816.1,0.1]
[1743727375425,13.47369163,1816.4,1816.1,0.1]
[1743727375627,22.69188103,1816.4,1816.1,0.1]
[1743727375843,17.18631103,1816.4,1816.1,5.6062]
[1743727376209,11.32,1816.4,1816.2,5.50596]
[1743727376452,11.32,1816.4,1816.3,5.85519]
[1743727376921,11.32,1816.4,1816.3,0.3495]
[1743727377252,11.32,1816.4,1816.2,5.5059]
[1743727377253,11.32,1816.4,1816.2,5.506]
[1743727377426,11.32,1816.4,1816.1,5.95569]
[1743727378015,11.32,1816.4,1816.1,11.46188]
[1743727378425,11.32,1816.4,1816.2,5.50594]
[1743727379150,11.32,1816.4,1816.2,5.50593]
[1743727380449,11.32,1816.4,1816.3,5.50569]
[1743727380952,11.60019,1816.9,1816.5,5.50506]
[1743727381156,3.7126194,1816.8,1816.4,5.85484]
[1743727381337,4.4977194,1816.6,1816.2,0.3495]
[1743727381663,4.4977194,1816.6,1816.1,5.60619]
[1743727381664,3.7126194,1816.4,1816.1,5.60619]
[1743727381953,10.81624,1816.5,1816.4,5.50539]
[1743727381954,8.311,1816.5,1816.4,5.50539]
[1743727382142,5.311,1816.5,1816.4,5.50539]
[1743727382313,5.311,1816.5,1816.4,5.85489]
[1743727382514,6.7951,1817.0,1816.4,5.85489]
[1743727382762,8.311,1816.9,1816.5,5.50502]
[1743727382916,13.81505,1816.9,1816.5,5.50494]
[1743727383117,5.50429,1816.8,1816.5,11.00988]
[1743727383441,5.311,1816.9,1816.4,5.85488]
[1743727383646,5.311,1816.9,1816.7,5.85371]
[1743727384031,5.311,1816.9,1816.8,5.50418]
[1743727384223,5.311,1816.9,1816.7,11.35808]
[1743727384416,5.311,1816.9,1816.8,5.50418]
[1743727385358,6.01,1817.0,1816.9,5.50388]
[1743727387312,5.31,1817.4,1817.3,5.50264]
[1743727387514,8.31,1817.5,1817.3,5.50264]
[1743727387754,6.01,1817.6,1817.4,0.22230169]
[1743727387944,5.31,1817.5,1817.4,5.50212]
[1743727388261,5.31,1817.5,1817.4,5.72344095]
[1743727388957,5.31,1817.5,1817.4,0.22132095]
[1743727389128,5.31,1817.5,1817.3,5.50254]
[1743727389326,5.31,1817.5,1817.4,0.22132095]
[1743727389566,5.31,1817.5,1817.3,5.5025]
[1743727389722,5.31,1817.5,1817.4,0.22132095]
[1743727389918,6.0785,1817.5,1817.3,5.5025]
[1743727390129,6.0785,1817.5,1817.4,0.2205856]
[1743727390442,6.0785,1817.5,1817.3,5.5025]
[1743727390642,6.0785,1817.5,1817.4,0.2205856]
[1743727390848,5.31,1817.5,1817.4,5.50236]
[1743727391061,5.31,1817.5,1817.4,5.7229456]
[1743727405159,7.4811194,1817.8,1817.4,0.2205856]
[1743727405378,10.5511194,1818.0,1817.8,5.50106]
[1743727405682,5.307,1817.9,1817.8,5.50106]
[1743727406046,5.307,1817.9,1817.7,5.50131]
[1743727406649,5.307,1817.9,1817.7,11.00266]
[1743727406948,6.89281194,1817.9,1817.7,11.00266]
[1743727407246,6.89281194,1817.9,1817.7,5.50131]
[1743727408582,3.7126194,1817.8,1817.6,5.50171]
[1743727408879,0.8285,1817.7,1817.6,5.50171]
[1743727409942,0.8285,1817.7,1817.5,5.50204]
[1743727410179,1.00422994,1817.7,1817.5,5.50196]
[1743727410478,4.5411194,1817.8,1817.6,5.50176]
[1743727412380,4.5411194,1817.8,1817.6,11.00339]
[1743727412580,4.5411194,1817.8,1817.6,5.50163]
[1743727414968,4.5411194,1817.8,1817.5,11.00397]
[1743727416316,4.5411194,1817.8,1817.3,5.85215]
[1743727416317,3.7126194,1817.6,1817.2,5.50271]
[1743727416631,3.7126194,1817.6,1817.3,5.50248]
[1743727416632,6.1345,1817.5,1817.3,5.50248]
[1743727417016,5.306,1817.5,1817.3,5.50248]
[1743727417188,5.306,1817.5,1817.4,5.50236]
[1743727418812,5.306,1817.5,1817.4,5.70135341]
[1743727419382,5.306,1817.5,1817.4,0.19899341]
[1743727419592,5.8366,1817.5,1817.3,11.0051]
[1743727419895,5.8366,1817.5,1817.4,0.19899341]
[1743727420428,5.8366,1817.5,1817.3,11.0051]
[1743727420606,5.306,1817.5,1817.4,0.19899341]
[1743727420913,5.306,1817.5,1817.3,11.0051]
[1743727421117,5.306,1817.5,1817.4,0.19899341]
[1743727421425,5.306,1817.5,1817.3,5.50253]
[1743727421641,5.306,1817.5,1817.4,0.19899341]
[1743727421923,6.75803794,1817.5,1817.3,5.50253]
[1743727422130,5.306,1817.5,1817.4,5.70135341]
[1743727440272,5.306,1817.5,1817.4,0.19899341]
[1743727440476,0.7924,1817.4,1817.2,11.00574]
[1743727440763,3.7924,1817.8,1817.7,5.50145]
[1743727440944,0.7924,1818.0,1817.7,5.50145]
[1743727441144,14.5186394,1817.9,1817.7,0.19861885]
[1743727441464,0.7924,1817.8,1817.5,5.5019]
[1743727441654,0.7924,1817.8,1817.7,5.50145]
[1743727441832,5.305,1817.9,1817.7,5.50145]
[1743727442032,8.305,1817.9,1817.8,5.50115]
[1743727442331,8.305,1817.9,1817.7,11.00278]
[1743727442657,8.305,1817.9,1817.7,5.50133]
[1743727442867,15.91993335,1817.9,1817.6,5.50168]
[1743727443069,15.91993335,1817.9,1817.6,11.0033]
[1743727443369,15.91993335,1817.9,1817.6,5.50162]
[1743727443868,19.63255275,1817.9,1817.6,5.50162]
[1743727444069,17.5184694,1817.9,1817.6,5.50162]
[1743727444961,12.0176194,1817.9,1817.6,11.00325]
[1743727445166,12.0176194,1817.9,1817.6,5.50162]
[1743727446027,17.5184794,1817.9,1817.6,5.50162]
[1743727446734,17.5184794,1817.9,1817.6,11.00323]
[1743727446928,17.5184794,1817.9,1817.6,11.00327]
[1743727447963,12.0176194,1817.9,1817.7,5.50143]
[1743727448162,9.0176194,1817.9,1817.7,5.50143]
[1743727448770,9.0176194,1817.9,1817.8,0.19828464]
[1743727449132,9.0176194,1817.9,1817.7,5.50143]
[1743727449466,9.0176194,1817.9,1817.8,0.19828464]
[1743727449664,14.5184694,1817.9,1817.6,5.50168]
[1743727449832,9.0176194,1817.9,1817.7,0.19854907]
[1743727450159,14.5185694,1817.9,1817.6,5.50166]
[1743727450363,14.5185694,1817.9,1817.6,11.0033]
[1743727450590,14.5185694,1817.9,1817.7,0.19854907]
[1743727450951,14.5185694,1817.9,1817.6,11.00326]
[1743727451175,14.5185694,1817.9,1817.8,0.19828464]
[1743727451484,14.5185694,1817.9,1817.6,11.00326]
[1743727451713,14.5185694,1817.9,1817.7,0.19854907]
[1743727451977,14.5185694,1817.9,1817.6,11.00328]
[1743727452186,14.5185694,1817.9,1817.8,0.19828464]
[1743727452356,14.5185694,1817.9,1817.7,0.19854907]
[1743727452555,14.5185694,1817.9,1817.6,11.00329]
[1743727452759,14.5185694,1817.9,1817.8,0.19828464]
[1743727453069,14.5185694,1817.9,1817.6,5.50162]
[1743727453381,9.0176194,1817.9,1817.7,5.69997907]
[1743727453889,5.305,1817.9,1817.7,5.69997907]
[1743727454095,5.303,1817.8,1817.7,6.82006598]
[1743727454384,45.13236,1818.4,1817.7,6.82006598]
[1743727454385,10.0102694,1818.8,1818.4,5.4991]
[1743727454556,5.303,1818.6,1818.4,10.99828]
[1743727454750,8.303,1818.6,1818.5,0.1948286]
[1743727454969,9.1333,1818.6,1818.5,0.1948286]
[1743727455544,9.1333,1818.6,1818.4,5.4991]
[1743727455978,9.1333,1818.6,1818.5,0.19475879]
[1743727456150,14.63203,1818.6,1818.5,0.19475879]
[1743727456349,14.63203,1818.6,1818.3,5.84911]
[1743727456586,14.63203,1818.6,1818.5,0.19475879]
[1743727456789,14.63203,1818.6,1818.4,0.19502302]
[1743727456948,14.63203,1818.6,1818.5,0.19475879]
[1743727457289,14.63203,1818.6,1818.3,5.84911]
[1743727457459,14.63203,1818.6,1818.4,0.19502302]
[1743727457656,5.303,1818.6,1818.3,5.84911]
[1743727457862,5.303,1818.6,1818.4,0.19502302]
[1743727458091,5.303,1818.6,1818.3,5.84911]
[1743727458399,5.303,1818.6,1818.4,0.19502302]
[1743727458689,5.303,1818.6,1818.3,5.84911]
[1743727458878,5.303,1818.6,1818.4,0.19502302]
[1743727459072,5.303,1818.6,1818.4,5.49921]
[1743727459277,5.303,1818.6,1818.5,0.19475879]
[1743727459477,5.303,1818.6,1818.5,5.69378879]
[1743727459784,9.1013,1818.8,1818.5,6.75537859]
[1743727460093,8.302,1818.8,1818.5,12.25428859]
[1743727460389,3.0,1818.8,1818.6,5.49866]
[1743727460592,5.302,1818.8,1818.6,5.84811]
[1743727460755,5.302,1818.8,1818.7,0.19234615]
[1743727461086,5.302,1818.8,1818.6,5.84811]
[1743727461308,5.302,1818.8,1818.5,1.0617398]
[1743727461309,5.302,1818.8,1818.7,0.19234615]
[1743727461455,5.302,1818.8,1818.5,12.0595298]
[1743727461651,5.302,1818.8,1818.6,0.19261032]
[1743727461891,5.302,1818.8,1818.6,5.69134032]
[1743727462506,5.302,1818.8,1818.6,0.19261032]
[1743727463793,5.302,1818.8,1818.6,5.69133032]
[1743727464283,5.302,1818.8,1818.6,0.19261032]
[1743727464587,10.80013,1818.8,1818.6,0.19261032]
[1743727464902,6.26493,1818.7,1818.6,0.19261032]
[1743727465186,10.99802,1818.6,1818.2,5.49988]
[1743727465392,5.49899,1818.6,1818.2,10.99971]
[1743727465563,10.99788,1818.6,1818.2,10.99971]
[1743727465766,5.49889,1818.6,1818.2,10.99971]
[1743727466094,5.49889,1818.6,1818.3,5.49963]
[1743727466245,5.49904,1818.5,1818.2,5.49983]
[1743727466444,5.301,1818.4,1818.2,5.49983]
[1743727467054,5.301,1818.4,1818.1,5.84973]
[1743727467383,6.0675,1818.4,1818.1,5.50008]
[1743727468646,6.0675,1818.4,1818.1,11.00017]
[1743727468852,5.301,1818.4,1818.2,5.49981]
[1743727469698,5.301,1818.4,1818.1,5.5002]
[1743727470013,5.301,1818.4,1818.1,11.00029]
[1743727470487,5.301,1818.4,1818.2,5.49994]
[1743727472606,5.301,1818.4,1818.1,11.00018]
[1743727472779,5.301,1818.4,1818.1,5.50009]
[1743727473119,10.80043,1818.4,1818.1,11.00019]
[1743727473328,10.80043,1818.4,1818.1,11.00021]
[1743727473616,10.80043,1818.4,1818.1,5.50009]
[1743727475420,10.80043,1818.4,1818.1,11.00022]
[1743727475643,0.7665,1818.3,1817.8,0.3495]
[1743727475916,0.7665,1818.0,1817.7,5.50141]
[1743727476118,5.50109,1817.9,1817.5,5.50195]
[1743727476427,5.50117,1817.8,1817.5,6.637324]
[1743727478127,5.50117,1817.8,1817.5,6.637314]
[1743727478325,5.50117,1817.8,1817.5,6.637284]
[1743727478626,5.50109,1817.9,1817.6,0.17767621]
[1743727479327,15.70485991,1818.0,1817.6,5.67942621]
[1743727479494,17.48531764,1818.0,1817.6,6.36090623]
[1743727479701,5.50086,1817.9,1817.6,6.36090623]
[1743727482021,17.48542764,1818.0,1817.6,11.86252623]
[1743727482227,11.98458764,1818.0,1817.7,5.50145]
[1743727482524,17.48531764,1818.0,1817.8,0.18067162]
[1743727482824,5.50085,1817.9,1817.8,0.18067162]
[1743727483120,5.50085,1817.9,1817.6,5.50162]
[1743727483323,5.50085,1817.9,1817.7,0.18093605]
[1743727483520,11.98458764,1818.0,1817.7,0.18093605]
[1743727483722,19.2338144,1818.0,1817.8,0.18067162]
[1743727483927,5.50085,1817.9,1817.6,5.50162]
[1743727484113,5.50085,1817.9,1817.7,0.18093605]
[1743727484314,5.50085,1817.9,1817.6,5.50162]
[1743727484513,5.50085,1817.9,1817.7,0.18093605]
[1743727484722,5.50115,1817.8,1817.5,5.50199]
[1743727484937,4.53797227,1817.8,1817.6,0.18120051]
[1743727485095,5.50205,1817.6,1817.2,5.50288]
[1743727485434,10.80209,1817.5,1817.3,0.18199408]
[1743727485632,0.8177,1817.4,1817.3,0.18199408]
[1743727492234,0.8177,1817.4,1817.1,11.00642]
[1743727492529,0.8177,1817.4,1817.2,0.18225866]
[1743727493232,6.32007,1817.4,1817.2,0.18225866]
[1743727493435,0.8177,1817.4,1817.2,0.18225866]
[1743727494813,0.8177,1817.4,1817.2,5.68522866]
[1743727495037,0.8177,1817.4,1817.2,0.18225866]
[1743727495227,6.32016,1817.4,1817.2,0.18225866]
[1743727495414,0.8177,1817.4,1817.2,0.18225866]
[1743727498946,0.8177,1817.4,1817.2,5.68521866]
[1743727499143,0.8317,1817.6,1817.3,11.00523]
[1743727499308,8.3,1817.5,1817.4,0.18291644]
[1743727499507,6.01,1817.7,1817.5,0.3495]
[1743727499746,6.01,1817.7,1817.6,0.18238743]
[1743727500331,10.8013,1817.8,1817.4,11.00455]
[1743727500551,10.8013,1817.8,1817.5,0.18265192]
[1743727500846,16.30267,1817.8,1817.5,0.18265192]
[1743727501933,10.8013,1817.8,1817.5,5.68461192]
[1743727502136,5.3,1817.8,1817.6,5.50163]
[1743727502450,5.3,1817.8,1817.7,0.18212297]
[1743727502965,5.50177,1817.6,1817.3,5.50258]
[1743727503458,5.50177,1817.6,1817.4,0.18291644]
[1743727503836,5.50206,1817.5,1817.1,5.50323]
[1743727504022,5.50206,1817.5,1817.1,11.00639]
[1743727504023,11.00442,1817.5,1817.1,11.00639]
[1743727504224,3.0,1817.5,1817.2,5.50294]
[1743727504439,3.0,1817.5,1817.4,5.50236]
[1743727504648,3.0,1817.7,1817.4,5.50225]
[1743727504949,0.8317,1817.8,1817.5,11.00394]
[1743727505115,5.3,1817.7,1817.5,11.00387]
[1743727505444,11.00187,1817.9,1817.5,11.00387]
[1743727505445,5.50086,1817.9,1817.6,5.50165]
[1743727505643,10.80086,1817.9,1817.6,5.50165]
[1743727506148,10.80086,1817.9,1817.6,5.85111]
[1743727507068,5.3,1817.9,1817.6,5.85111]
[1743727507439,10.80089,1817.9,1817.6,5.85111]
[1743727508077,14.72227227,1817.9,1817.5,6.602317]
[1743727508375,5.299,1817.8,1817.6,5.50175]
[1743727508575,5.299,1817.8,1817.7,0.18250687]
[1743727508945,5.299,1817.8,1817.6,5.50167]
[1743727509142,15.75974764,1818.0,1817.8,5.50096]
[1743727509143,6.01,1818.0,1817.8,5.50096]
[1743727509359,6.01,1818.0,1817.9,5.85035]
[1743727509562,6.01,1818.0,1817.9,0.18180349]
[1743727510175,6.01,1818.0,1817.7,11.00273]
[1743727510376,11.51057,1818.0,1817.8,0.18206789]
[1743727510567,8.16021523,1818.0,1817.8,0.18206789]
[1743727510742,6.01,1818.0,1817.8,5.68320789]
[1743727512686,6.01,1818.0,1817.8,6.03255789]
[1743727513808,6.01,1818.0,1817.8,0.18206789]
[1743727515000,5.50028,1818.1,1817.8,0.18206789]
[1743727515505,5.50028,1818.1,1817.8,5.68318789]
[1743727516500,11.00071,1818.1,1817.8,0.18206789]
[1743727516705,7.130251,1818.1,1817.8,0.18206789]
[1743727517500,12.630661,1818.1,1817.8,0.18206789]
[1743727517806,12.22112227,1817.9,1817.8,0.18206789]
[1743727517960,5.50128,1817.8,1817.4,11.35386]
[1743727518164,5.50163,1817.7,1817.5,0.18286128]
[1743727520103,11.57008,1817.8,1817.5,5.68485128]
[1743727520396,17.07143,1817.8,1817.5,5.68485128]
[1743727520562,5.50145,1817.7,1817.5,0.18286128]
[1743727520763,8.44807023,1817.8,1817.5,5.68466128]
[1743727520971,6.0689,1817.8,1817.5,5.68466128]
[1743727521195,6.0689,1817.8,1817.5,11.18663128]
[1743727521593,11.57005,1817.8,1817.5,5.68466128]
[1743727521998,11.57005,1817.8,1817.5,0.18286128]
[1743727522204,6.658575,1817.7,1817.5,0.18286128]
[1743727523244,1.157005,1817.7,1817.5,0.18286128]
[1743727523530,1.157005,1817.7,1817.5,5.68475128]
[1743727523826,11.57008,1817.8,1817.5,5.68475128]
[1743727524033,5.298,1817.7,1817.6,0.3495]
[1743727524322,9.01,1817.9,1817.6,5.85126]
[1743727524501,14.308,1817.9,1817.6,6.03301862]
[1743727524906,11.308,1817.9,1817.6,6.03301862]
[1743727525091,13.99238523,1817.9,1817.6,0.18189862]
[1743727525286,6.31565,1817.7,1817.6,0.18189862]
[1743727525593,6.31565,1817.7,1817.3,5.50252]
[1743727525594,5.50182,1817.6,1817.3,5.50252]
[1743727526924,5.50182,1817.6,1817.2,11.35522]
[1743727527531,5.50182,1817.6,1817.3,5.50264]
[1743727528628,11.81732,1817.7,1817.3,11.00515]
[1743727528801,11.81735,1817.7,1817.3,5.50251]
[1743727529736,5.50178,1817.6,1817.3,5.50251]
[1743727531833,5.50278,1817.3,1817.0,5.85291]
[1743727532052,5.50278,1817.3,1816.9,5.50386]
[1743727532214,5.50278,1817.3,1816.9,11.00758]
[1743727532414,5.50278,1817.3,1816.9,5.50372]
[1743727532708,11.00562,1817.3,1816.9,5.55875069]
[1743727532908,5.50278,1817.3,1816.9,5.55875069]
[1743727533173,5.50278,1817.3,1816.9,12.20369776]
[1743727533455,5.50278,1817.3,1816.9,12.14866707]
[1743727533627,11.00561,1817.3,1816.9,6.64494707]
[1743727534136,5.50299,1817.2,1816.9,5.50371]
[1743727534955,15.53958227,1817.4,1817.0,5.85304]
[1743727535160,5.50267,1817.3,1817.0,5.85304]
[1743727535659,5.50267,1817.3,1817.0,0.3495]
[1743727535848,5.50267,1817.3,1817.0,0.40452979]
[1743727536331,5.50267,1817.3,1817.0,5.90806979]
[1743727536529,11.00551,1817.3,1817.0,0.40452979]
[1743727536940,0.8142,1816.6,1816.2,0.3495]
[1743727537141,3.72027227,1816.5,1816.3,5.50555]
[1743727537481,10.85800636,1816.6,1816.2,11.36125]
[1743727537674,10.80297,1816.6,1816.3,0.05505158]
[1743727537975,9.22555227,1816.5,1816.3,0.17205511]
[1743727538211,6.28139,1816.4,1816.3,0.17205511]
[1743727538346,5.506,1816.2,1816.1,0.1]
[1743727538541,10.804,1816.2,1816.1,0.27258488]
[1743727539973,12.86204559,1816.2,1816.1,0.27258488]
[1743727540275,12.80700923,1816.2,1816.1,0.1]
[1743727540645,15.80700923,1816.2,1816.1,0.27258488]
[1743727540839,15.80700923,1816.2,1816.1,0.1]
[1743727541040,15.80700923,1816.2,1816.1,0.27258488]
[1743727541261,15.80700923,1816.2,1816.1,0.1]
[1743727541478,15.80700923,1816.2,1816.1,0.27258488]
[1743727541776,15.80700923,1816.2,1816.1,0.1]
[1743727541992,16.58300923,1816.2,1816.1,0.27258488]
[1743727542677,5.77900923,1816.2,1816.1,0.27258488]
[1743727542875,9.12903636,1816.2,1816.1,0.27258488]
[1743727543054,14.63503636,1816.2,1816.1,0.1]
[1743727543254,14.58,1816.2,1816.1,0.27796629]
[1743727543456,14.58,1816.2,1816.1,0.1]
[1743727543667,14.58,1816.2,1816.1,0.27796629]
[1743727543869,16.96060923,1816.2,1816.1,0.1]
[1743727544378,16.96060923,1816.2,1816.1,0.27796629]
[1743727544541,5.50582,1816.3,1816.1,0.27796629]
[1743727544877,8.299,1816.3,1816.1,0.27796629]
[1743727545381,8.299,1816.3,1816.1,5.78423629]
[1743727545583,8.3,1816.3,1816.1,5.78423629]
[1743727545958,8.3,1816.3,1816.1,0.27796629]
[1743727546157,13.80572,1816.3,1816.1,0.27796629]
[1743727546668,21.924364,1816.3,1816.1,0.27796629]
[1743727546867,9.22627227,1816.2,1816.1,0.27796629]
[1743727547062,13.08760863,1816.2,1816.1,0.27796629]
[1743727547389,13.03257227,1816.2,1816.1,0.1]
[1743727547890,13.03257227,1816.2,1816.1,0.26665405]
[1743727548044,14.16226757,1816.2,1816.1,0.1]
[1743727548252,14.16226757,1816.2,1816.1,0.26665405]
[1743727548467,14.16226757,1816.2,1816.1,0.1]
[1743727548960,14.16226757,1816.2,1816.1,0.26665405]
[1743727550194,20.17226757,1816.2,1816.1,0.26665405]
[1743727551694,20.17226757,1816.2,1816.1,4.05e-06]
[1743727551695,24.66286742,1816.2,1816.1,4.05e-06]
[1743727551881,5.50844,1815.4,1815.1,5.60932]
[1743727552088,5.3,1815.3,1815.2,5.50903]
[1743727552394,5.3,1815.3,1815.2,0.15515162]
[1743727552695,5.3,1815.3,1815.1,5.60931]
[1743727552891,5.3,1815.3,1815.2,0.15515162]
[1743727553193,5.3,1815.3,1815.1,5.60931]
[1743727553361,5.3,1815.3,1815.2,0.15515162]
[1743727553563,5.3,1815.3,1815.1,5.60931]
[1743727553771,5.3,1815.3,1815.2,0.15515162]
[1743727553972,5.3,1815.3,1815.1,5.60931]
[1743727554198,5.3,1815.3,1815.2,0.15515162]
[1743727554492,5.3,1815.3,1815.1,5.60931]
[1743727554870,5.3,1815.3,1815.2,0.15515162]
[1743727555270,5.3,1815.3,1815.2,5.50903]
[1743727555472,5.3,1815.3,1815.2,5.66418162]
[1743727556107,18.00899287,1815.3,1815.2,0.15515162]
[1743727556308,18.58570571,1815.3,1815.2,0.15515162]
[1743727556522,24.09460571,1815.3,1815.1,0.1]
[1743727556694,24.09460571,1815.3,1815.2,0.15515162]
[1743727557209,8.50903,1815.2,1815.1,0.1]
[1743727557503,10.91850357,1815.2,1815.1,0.25929116]
[1743727557691,10.91850357,1815.2,1815.1,0.1]
[1743727557893,10.91850357,1815.2,1815.1,0.25929116]
[1743727558080,10.91850357,1815.2,1815.1,0.1]
[1743727558280,17.73800357,1815.2,1815.1,0.25929116]
[1743727558481,17.73800357,1815.2,1815.1,0.1]
[1743727558706,17.73800357,1815.2,1815.1,0.25929116]
[1743727559603,21.93826644,1815.2,1815.1,0.25929116]
[1743727559809,22.70859402,1815.2,1815.1,0.1]
[1743727560708,18.50833115,1815.2,1815.1,0.1]
[1743727561003,22.70859402,1815.2,1815.1,0.1]
[1743727561909,18.50833115,1815.2,1815.1,0.1]
[1743727562105,22.70859402,1815.2,1815.1,0.1]
[1743727562771,18.50833115,1815.2,1815.1,0.1]
[1743727563073,23.04000357,1815.2,1815.1,0.1]